bitfinex/quotes_ETHUSD_20211001
["timestamp","ask_amount","ask_price","bid_price","bid_amount"]
[1633086069625,0.83930763,3210.0,3209.5,5.50274736]
[1633086069626,1.00299981,3210.0,3209.5,5.50274736]
[1633086070026,1.00299981,3210.0,3209.5,0.003]
[1633086070426,1.00299981,3210.0,3209.4,0.003]
[1633086070828,0.83930763,3210.0,3209.5,4.67313]
[1633086071029,0.83930763,3210.0,3209.5,4.96704037]
[1633086071229,0.83930763,3210.0,3209.5,0.29691037]
[1633086072029,0.83930763,3210.0,3209.8,4.67288]
[1633086072232,0.83930763,3210.0,3209.8,5.67288]
[1633086072630,0.003,3210.5,3210.0,0.83930763]
[1633086072832,0.003,3210.5,3210.4,17.679913]
[1633086073032,0.003,3210.5,3210.4,23.14627981]
[1633086073297,0.003,3210.5,3210.4,26.11109823]
[1633086074032,0.003,3210.5,3210.4,24.14627981]
[1633086074933,0.003,3210.5,3210.4,5.71566838]
[1633086074934,0.21648622,3210.5,3210.4,5.71566838]
[1633086075935,0.21648622,3210.5,3210.4,4.71566838]
[1633086076135,0.21648622,3210.5,3210.4,0.04450838]
[1633086076335,0.003,3210.5,3210.4,0.04450838]
[1633086077337,0.003,3210.5,3210.4,0.05341777]
[1633086080102,0.003,3210.5,3210.2,4.67254]
[1633086080103,1.603,3210.5,3210.2,4.67254]
[1633086080503,1.81648622,3210.5,3210.2,4.67254]
[1633086080702,1.81648622,3210.5,3210.1,2.28309777]
[1633086081302,2.58832621,3210.5,3210.0,0.67861526]
[1633086081705,0.86316538,3210.4,3210.0,0.67861526]
[1633086081908,3.97891538,3210.4,3210.0,0.67861526]
[1633086082309,4.6738,3210.3,3210.1,0.16415176]
[1633086082708,3.97891538,3210.4,3210.1,0.16415176]
[1633086083708,0.86316538,3210.4,3210.1,0.16415176]
[1633086084711,0.86586122,3210.3,3210.1,0.16415176]
[1633086085109,0.86316538,3210.4,3210.1,0.16415176]
[1633086085310,0.87394401,3210.4,3210.1,0.16415176]
[1633086085709,0.87394401,3210.4,3210.1,0.20866333]
[1633086085909,0.21357983,3210.3,3210.1,0.04451157]
[1633086086111,1.11759588,3210.3,3210.1,0.04451157]
[1633086087115,0.21357983,3210.3,3210.1,0.04451157]
[1633086087816,0.01077863,3210.4,3210.2,0.16412623]
[1633086088015,0.01077863,3210.4,3210.2,1.05455357]
[1633086088414,0.01077863,3210.4,3210.3,17.937]
[1633086088615,0.01077863,3210.4,3210.3,17.6]
[1633086088815,0.01077863,3210.4,3210.3,18.75]
[1633086089415,0.003,3211.0,3210.5,2.33504757]
[1633086089617,0.003,3211.0,3210.9,17.62577601]
[1633086089816,3.43251163,3212.4,3211.5,1.50790918]
[1633086090020,0.009,3212.5,3211.6,0.15]
[1633086090216,0.009,3212.5,3211.4,0.079913]
[1633086090217,0.95927576,3212.4,3211.7,0.15]
[1633086090414,0.95927576,3212.4,3211.8,0.15]
[1633086090615,0.009,3212.5,3212.0,0.079913]
[1633086090816,0.009,3212.5,3212.1,0.15]
[1633086091017,0.009,3212.5,3212.4,5.62550633]
[1633086091219,0.009,3212.5,3212.4,6.77550633]
[1633086091417,0.22179396,3212.5,3212.4,7.76982327]
[1633086091617,0.22179396,3212.5,3212.4,1.17550633]
[1633086091819,0.22179396,3212.5,3212.4,1.15]
[1633086092019,0.22179396,3212.5,3212.4,0.15]
[1633086092218,0.22179396,3212.5,3212.4,0.26925444]
[1633086092621,0.22179396,3212.5,3212.4,12.31925444]
[1633086092817,0.22179396,3212.5,3212.4,13.31925444]
[1633086093018,0.009,3212.5,3212.4,1.26925444]
[1633086093218,0.009,3212.5,3212.4,0.26925444]
[1633086093419,1.12715791,3212.5,3212.4,0.26925444]
[1633086093619,4.82715791,3212.5,3212.4,0.26925444]
[1633086093817,1.12715791,3212.5,3212.4,0.26925444]
[1633086094020,1.96620759,3212.5,3212.4,0.26925444]
[1633086094218,1.96620759,3212.5,3212.4,0.11925444]
[1633086096619,12.41620759,3212.5,3212.4,0.11925444]
[1633086096820,12.41620759,3212.5,3212.4,0.1637355]
[1633086097021,2.17894545,3212.5,3212.4,0.1637355]
[1633086097825,3.47294545,3212.5,3212.4,0.1637355]
[1633086098025,3.47294545,3212.5,3212.4,0.0305355]
[1633086098026,21.09730717,3212.5,3212.4,0.0305355]
[1633086098225,22.02979278,3212.5,3211.7,0.69687549]
[1633086098421,0.93255001,3212.4,3211.7,0.69687549]
[1633086098620,0.93255001,3212.4,3211.8,0.16462701]
[1633086098820,0.93255001,3212.4,3211.2,0.003]
[1633086098821,1.08303464,3211.7,3211.2,0.003]
[1633086099022,4.7675505,3211.6,3211.2,0.003]
[1633086099323,1.13538403,3211.6,3211.2,0.003]
[1633086099921,7.65,3211.3,3211.2,0.003]
[1633086100524,14.017463,3211.5,3211.1,0.08132639]
[1633086100525,7.4,3211.2,3211.1,0.08132639]
[1633086100922,1.294,3211.2,3211.1,0.08132639]
[1633086101722,4.67231,3211.3,3211.1,0.08132639]
[1633086102123,1.00225737,3211.4,3211.1,0.08132639]
[1633086102422,0.29551898,3211.3,3211.1,0.08132639]
[1633086102621,0.29551898,3211.3,3211.1,0.12582429]
[1633086104226,5.67441737,3211.4,3211.2,0.08208273]
[1633086104424,1.00225737,3211.4,3211.2,0.08208273]
[1633086104823,3.12064104,3210.1,3209.5,0.003]
[1633086105026,3.12064104,3210.1,3209.7,0.16265278]
[1633086105826,3.90439372,3210.1,3209.7,0.16265278]
[1633086106627,5.19839372,3210.1,3209.7,0.16265278]
[1633086106827,6.0594984,3210.1,3209.7,0.16265278]
[1633086107227,3.98174572,3210.1,3209.7,0.16265278]
[1633086107928,5.61273659,3210.1,3209.7,0.16265278]
[1633086108130,6.61273659,3210.1,3209.7,0.16265278]
[1633086108327,9.40696132,3210.1,3209.7,0.16265278]
[1633086108527,16.03637185,3210.1,3210.0,0.72613]
[1633086108729,10.36156185,3210.1,3210.0,0.72613]
[1633086109227,6.00502744,3210.1,3210.0,0.72613]
[1633086109428,10.05502744,3210.1,3210.0,0.72613]
[1633086109632,9.71803657,3210.1,3210.0,0.72613]
[1633086110027,5.27861526,3209.7,3209.6,0.09519723]
[1633086110230,0.67861526,3209.7,3209.6,0.09519723]
[1633086111232,0.57861526,3209.7,3209.6,0.09519723]
[1633086111432,2.17861526,3209.7,3209.6,0.09519723]
[1633086113234,2.51575595,3209.7,3209.6,0.09519723]
[1633086113430,3.54133153,3209.7,3209.6,0.09519723]
[1633086113631,2.51575595,3209.7,3209.6,4.76838723]
[1633086114431,2.51575595,3209.7,3209.6,0.09519723]
[1633086115032,2.17861526,3209.7,3209.6,0.09519723]
[1633086115436,13.73418476,3209.7,3209.6,0.09519723]
[1633086115635,3.04018476,3209.7,3209.6,0.09519723]
[1633086116434,7.64018476,3209.7,3209.6,0.09519723]
[1633086116832,3.04018476,3209.7,3209.6,0.09519723]
[1633086117434,8.94018476,3209.7,3209.6,0.09519723]
[1633086117834,10.23418476,3209.7,3209.6,0.09519723]
[1633086118233,4.33418476,3209.7,3209.6,0.09519723]
[1633086118436,11.33418476,3209.7,3209.6,0.09519723]
[1633086118634,3.04018476,3209.7,3209.6,0.09519723]
[1633086118833,3.37732545,3209.7,3209.6,0.09519723]
[1633086119538,9.97732545,3209.7,3209.6,0.09519723]
[1633086119934,11.27132545,3209.7,3209.6,0.09519723]
[1633086120334,16.82132545,3209.7,3209.6,0.09519723]
[1633086120737,11.35,3209.6,3209.5,0.003]
[1633086120938,1.294,3209.6,3209.5,0.003]
[1633086121936,5.97018,3209.6,3209.5,0.003]
[1633086122136,7.35,3209.5,3209.4,0.43812986]
[1633086122339,8.644,3209.5,3209.4,0.43812986]
[1633086122537,9.644,3209.5,3209.4,0.43812986]
[1633086122737,13.713,3209.4,3209.1,0.19256429]
[1633086122937,5.84591,3209.3,3209.1,0.19256429]
[1633086123140,1.0,3209.4,3209.1,0.19256429]
[1633086123342,3.11722,3209.6,3209.1,0.19256429]
[1633086123738,5.29604736,3209.7,3209.1,0.34256429]
[1633086123938,2.17861526,3209.7,3209.4,1.294]
[1633086124138,2.17861526,3209.7,3209.1,0.34256429]
[1633086124337,2.17861526,3209.7,3209.3,0.77987055]
[1633086124338,0.33727182,3209.5,3209.3,0.77987055]
[1633086125139,0.33727182,3209.5,3209.1,0.34256429]
[1633086125339,0.33727182,3209.5,3209.3,1.294]
[1633086125539,0.33727182,3209.5,3209.1,0.34256429]
[1633086125739,1.19269355,3209.2,3209.1,0.34256429]
[1633086125938,0.33727182,3209.5,3209.1,0.34256429]
[1633086126142,0.96243545,3209.5,3209.2,0.04055402]
[1633086126539,2.64376386,3209.5,3209.2,0.04055402]
[1633086127138,0.85952388,3209.4,3209.2,0.04055402]
[1633086127344,11.76899048,3209.4,3209.2,0.04055402]
[1633086127541,22.72,3209.3,3209.2,0.04055402]
[1633086127741,24.014,3209.3,3209.2,0.04055402]
[1633086127940,25.014,3209.3,3209.2,0.04055402]
[1633086128140,5.55,3209.3,3209.2,0.04055402]
[1633086128342,12.35,3209.3,3209.2,0.04055402]
[1633086128742,14.644,3209.3,3209.2,0.04055402]
[1633086128941,13.35,3209.3,3209.2,0.04055402]
[1633086129342,19.563,3209.3,3209.2,0.04055402]
[1633086129741,21.23168257,3209.3,3209.1,0.19256429]
[1633086129941,21.23168257,3209.3,3208.8,0.19256429]
[1633086129942,8.52671,3209.2,3208.8,0.19256429]
[1633086130146,4.85,3209.2,3208.8,0.19256429]
[1633086130410,4.85,3209.2,3208.0,0.003]
[1633086130411,14.55,3208.8,3208.0,0.003]
[1633086130609,3.11848,3208.6,3208.0,0.003]
[1633086130808,1.294,3208.4,3208.0,0.003]
[1633086131010,3.36308481,3208.4,3208.0,0.003]
[1633086131212,1.81248668,3208.3,3208.0,0.003]
[1633086131412,4.67777,3208.2,3208.0,0.003]
[1633086132010,24.14177,3208.2,3208.0,0.003]
[1633086132211,25.14177,3208.2,3208.0,0.003]
[1633086132411,10.8,3208.1,3207.9,0.41206322]
[1633086132611,4.67842,3208.0,3207.9,0.41206322]
[1633086133012,6.97242,3208.0,3207.9,0.41206322]
[1633086133211,5.97242,3208.0,3207.9,0.41206322]
[1633086133615,4.67842,3208.0,3207.9,0.41206322]
[1633086135214,5.01619785,3208.0,3207.9,0.41206322]
[1633086137214,4.67842,3208.0,3207.9,0.41206322]
[1633086139416,24.14242,3208.0,3207.5,0.20249971]
[1633086139619,6.47544048,3207.8,3207.5,0.20249971]
[1633086139816,0.024098,3207.6,3207.5,0.20249971]
[1633086140016,2.39501449,3207.7,3207.5,0.20249971]
[1633086140017,0.96691449,3207.7,3207.5,0.20249971]
[1633086140422,0.90012275,3207.6,3207.5,0.20249971]
[1633086140616,2.53205062,3207.6,3207.5,0.20249971]
[1633086140815,2.23805062,3207.6,3207.5,0.20249971]
[1633086141017,0.33792787,3207.6,3207.5,0.20249971]
[1633086141418,18.50792787,3207.6,3207.5,0.20249971]
[1633086141617,1.63192787,3207.6,3207.2,0.02615528]
[1633086141820,1.33792787,3207.6,3207.2,0.02615528]
[1633086142017,0.33792787,3207.6,3207.2,0.02615528]
[1633086142218,0.75232369,3207.5,3207.2,0.02615528]
[1633086142420,7.79738,3207.4,3207.2,0.02615528]
[1633086142619,3.11887,3207.4,3207.2,0.02615528]
[1633086142818,3.11887,3207.4,3207.3,0.04005309]
[1633086143422,7.79663,3207.4,3207.3,0.04005309]
[1633086143620,3.11887,3207.4,3207.3,0.04005309]
[1633086144219,4.08642289,3207.7,3207.3,0.04005309]
[1633086145021,0.93113626,3207.5,3207.3,0.04005309]
[1633086146021,9.42837,3207.4,3207.3,0.04005309]
[1633086146223,9.42837,3207.4,3207.2,0.02615528]
[1633086146823,4.67837,3207.4,3207.2,0.02615528]
[1633086147626,7.79757,3207.4,3207.2,0.02615528]
[1633086148225,7.79757,3207.4,3207.3,0.0400275]
[1633086149024,17.34757,3207.4,3207.3,0.0400275]
[1633086149223,7.79757,3207.4,3207.3,0.0400275]
[1633086150825,5.79757,3207.4,3207.3,0.0400275]
[1633086151626,5.79757,3207.4,3207.2,0.02615528]
[1633086151827,6.13559164,3207.4,3207.2,0.02615528]
[1633086152026,0.33802164,3207.4,3207.2,0.02615528]
[1633086153025,0.97596048,3207.3,3207.2,0.02615528]
[1633086153226,0.33802164,3207.4,3207.2,0.02615528]
[1633086153628,4.67785,3207.4,3207.2,0.02615528]
[1633086153826,7.79631,3207.4,3207.3,0.04002765]
[1633086154426,3.11846,3207.4,3207.3,0.04002765]
[1633086155027,10.77722728,3207.4,3207.3,0.04002765]
[1633086155227,12.6624754,3207.4,3207.3,0.04002765]
[1633086155628,13.6624754,3207.4,3207.3,0.04002765]
[1633086155828,31.8324754,3207.4,3207.3,0.04002765]
[1633086156031,13.6624754,3207.4,3207.3,0.04002765]
[1633086156430,38.0454754,3207.4,3207.3,0.04002765]
[1633086156728,19.8754754,3207.4,3207.3,0.04002765]
[1633086157127,17.99022728,3207.4,3207.2,0.02615528]
[1633086157332,17.32824892,3207.4,3207.2,0.02615528]
[1633086157529,11.11524892,3207.4,3207.2,0.02615528]
[1633086157831,4.6784,3207.3,3207.2,0.02615528]
[1633086159328,4.6784,3207.3,3207.2,0.06617021]
[1633086159931,10.45226306,3207.3,3207.2,0.06617021]
[1633086160931,16.66526306,3207.3,3207.2,0.06617021]
[1633086161131,10.45226306,3207.3,3207.2,0.06617021]
[1633086161730,12.05226306,3207.3,3207.2,0.06617021]
[1633086161929,0.93382979,3207.2,3206.9,0.003]
[1633086162729,4.67836,3207.1,3206.9,0.003]
[1633086162933,4.41086269,3207.2,3206.9,0.19]
[1633086163330,4.41086269,3207.2,3207.0,0.003]
[1633086163733,0.94715633,3207.1,3207.0,0.003]
[1633086163933,2.09226592,3207.1,3207.0,0.003]
[1633086164731,1.14510959,3207.1,3207.0,0.003]
[1633086164931,4.05273979,3207.2,3207.0,0.003]
[1633086165533,4.05273979,3207.2,3206.9,0.09]
[1633086166133,4.05273979,3207.2,3206.9,0.04]
[1633086167134,0.94624289,3207.1,3206.9,0.04]
[1633086167534,0.93382979,3207.2,3206.9,0.04]
[1633086168134,1.29195269,3207.2,3206.9,0.04]
[1633086168334,1.29195269,3207.2,3207.0,1.55675685]
[1633086168534,1.29195269,3207.2,3207.1,16.01094486]
[1633086168935,1.29195269,3207.2,3207.1,7.06094486]
[1633086169134,1.29195269,3207.2,3207.1,8.61765345]
[1633086169335,1.29195269,3207.2,3207.1,7.79255859]
[1633086169536,1.29195269,3207.2,3207.1,6.23585]
[1633086170136,0.93382979,3207.2,3207.1,6.23585]
[1633086170338,0.93382979,3207.2,3207.1,7.79512743]
[1633086171138,0.93382979,3207.2,3206.8,0.19256429]
[1633086171538,0.93382979,3207.2,3206.9,1.56118405]
[1633086171940,0.93382979,3207.2,3206.9,2.33293197]
[1633086172138,0.93382979,3207.2,3207.0,6.23868314]
[1633086172338,0.003,3207.5,3207.3,1.39301554]
[1633086172538,0.003,3207.5,3207.4,19.32526675]
[1633086172739,0.003,3207.5,3207.4,20.86325907]
[1633086172940,0.003,3207.5,3207.4,23.30820876]
[1633086173139,0.003,3207.5,3207.4,23.29590991]
[1633086173337,0.3609916,3207.5,3207.4,24.19252667]
[1633086173538,0.3609916,3207.5,3207.4,25.48652667]
[1633086173740,0.3609916,3207.5,3207.4,30.16227667]
[1633086173940,0.3609916,3207.5,3207.4,12.25362773]
[1633086174241,0.3609916,3207.5,3207.4,11.34421345]
[1633086174440,0.3609916,3207.5,3207.4,8.71990638]
[1633086174840,0.3609916,3207.5,3207.4,9.25800689]
[1633086175299,0.3609916,3207.5,3207.4,9.62558642]
[1633086175442,0.3609916,3207.5,3207.4,9.65009852]
[1633086175644,0.003,3207.5,3207.4,10.56712414]
[1633086175841,0.003,3207.5,3207.4,10.2083386]
[1633086176244,0.003,3207.5,3207.4,8.8898265]
[1633086176642,0.003,3207.5,3207.4,8.35164577]
[1633086176841,0.003,3207.5,3207.4,8.8899337]
[1633086177444,0.003,3207.5,3207.4,3.2141837]
[1633086177645,0.003,3207.5,3207.4,1.77021573]
[1633086177843,0.003,3207.5,3207.4,1.58321573]
[1633086178045,1.297,3207.5,3207.4,1.58321573]
[1633086178304,0.53151304,3207.3,3207.2,0.93382979]
[1633086178844,1.72815519,3207.3,3207.2,0.93382979]
[1633086179044,2.09625149,3207.3,3207.2,0.93382979]
[1633086180045,3.06763406,3207.3,3207.2,0.93382979]
[1633086180448,2.09625149,3207.3,3207.2,0.93382979]
[1633086181048,20.26625149,3207.3,3207.2,0.93382979]
[1633086181315,19.89815519,3207.3,3207.2,0.95033362]
[1633086182048,20.89747365,3207.3,3207.2,0.95033362]
[1633086182249,0.92136577,3206.8,3206.1,2.07522629]
[1633086182451,14.2,3207.2,3206.0,0.003]
[1633086182452,0.93017258,3206.1,3206.0,0.003]
[1633086183250,0.93017258,3206.1,3206.0,0.96431365]
[1633086184450,1.30697117,3206.1,3206.0,0.96431365]
[1633086184653,1.30697117,3206.1,3206.0,0.003]
[1633086185051,5.98693117,3206.1,3206.0,0.003]
[1633086185652,1.30697117,3206.1,3206.0,0.003]
[1633086185855,2.21348433,3206.1,3206.0,0.003]
[1633086186255,1.30697117,3206.1,3206.0,0.003]
[1633086186654,2.04567141,3206.1,3206.0,0.003]
[1633086187052,0.93017258,3206.1,3206.0,0.003]
[1633086188055,2.13459812,3205.3,3205.2,0.19256429]
[1633086188658,2.13459812,3205.3,3204.9,1.23993025]
[1633086188854,3.120493,3205.4,3204.5,2.34196582]
[1633086188855,3.14596413,3205.4,3204.5,2.34196582]
[1633086189056,3.14596413,3205.4,3204.5,0.003]
[1633086189057,1.294,3205.0,3204.5,0.003]
[1633086189256,2.93025582,3205.1,3204.5,0.01192507]
[1633086189457,4.68219,3204.8,3204.5,0.00892507]
[1633086189657,1.03964921,3204.7,3204.5,0.00892507]
[1633086189856,1.03964921,3204.7,3204.5,0.003]
[1633086189857,4.34686559,3204.6,3204.5,0.003]
[1633086190056,18.77754529,3204.6,3204.5,0.003]
[1633086190323,0.187,3204.6,3203.7,0.006]
[1633086190455,4.8689,3204.6,3204.4,0.003]
[1633086190657,4.8689,3204.6,3203.9,1.26013681]
[1633086190658,19.464,3204.5,3203.9,1.26013681]
[1633086190857,19.464,3204.5,3204.1,0.003]
[1633086190858,10.077409,3204.2,3204.1,0.003]
[1633086191058,0.077409,3204.2,3204.0,0.006]
[1633086191257,1.12037166,3204.1,3203.6,1.26624003]
[1633086191456,1.12037166,3204.1,3203.6,1.26024003]
[1633086191457,19.29037166,3204.1,3203.6,1.26024003]
[1633086191655,19.29037166,3204.1,3203.7,1.26614344]
[1633086191859,3.5281493,3203.2,3202.9,0.003]
[1633086192057,0.02413578,3203.0,3202.9,0.003]
[1633086192257,1.32494954,3203.0,3202.9,0.003]
[1633086192456,1.32494954,3203.0,3202.3,0.006]
[1633086192657,1.32494954,3203.0,3202.2,2.88614475]
[1633086192658,0.187,3203.0,3202.2,2.88614475]
[1633086192859,0.187,3203.0,3202.2,2.88615787]
[1633086193059,0.187,3203.0,3202.6,1.294]
[1633086193322,0.187,3203.0,3202.3,0.006]
[1633086193323,3.5281493,3203.2,3202.5,2.88005824]
[1633086193458,3.5281493,3203.2,3202.7,0.003]
[1633086193661,3.5281493,3203.2,3202.7,0.96443854]
[1633086194058,6.6508393,3203.2,3202.8,0.003]
[1633086194458,6.6508393,3203.2,3202.3,0.006]
[1633086194656,6.6508393,3203.2,3202.0,0.009]
[1633086194857,6.6508393,3203.2,3202.2,0.006]
[1633086195058,0.80276477,3202.8,3202.2,0.006]
[1633086195257,0.80276477,3202.8,3202.0,0.009]
[1633086195458,0.37802005,3203.0,3202.4,1.294]
[1633086195660,11.442,3204.2,3202.0,0.009]
[1633086195661,0.3062,3204.4,3203.2,1.86799276]
[1633086195859,0.003,3204.5,3203.5,1.79890916]
[1633086196058,0.003,3204.5,3203.7,0.53970435]
[1633086196059,1.112927,3204.4,3203.7,0.53970435]
[1633086196262,1.299927,3204.4,3203.7,0.53970031]
[1633086196460,8.78396969,3203.9,3203.7,0.5397068]
[1633086196659,8.78396969,3203.9,3203.7,0.53970969]
[1633086196961,41.14254,3203.8,3203.6,0.53970218]
[1633086197168,0.187,3203.7,3203.5,0.53973764]
[1633086197360,17.63027116,3203.6,3203.5,0.53977376]
[1633086197759,4.12254,3203.8,3203.6,0.18980962]
[1633086197960,5.14385609,3203.9,3203.7,0.53964751]
[1633086198159,5.14385609,3203.9,3203.6,0.72944553]
[1633086198160,1.294,3203.8,3203.6,0.72944553]
[1633086198360,18.17,3203.7,3203.6,0.18980962]
[1633086198562,14.21246109,3203.9,3203.6,0.18980962]
[1633086198763,14.21246109,3203.9,3203.6,0.72944339]
[1633086198764,14.02546109,3203.9,3203.6,0.72944339]
[1633086199160,2.03574404,3203.1,3202.8,2.47540316]
[1633086199361,2.03574404,3203.1,3202.8,0.67663807]
[1633086199563,2.03574404,3203.1,3203.0,18.71843308]
[1633086199764,0.899389,3203.4,3203.1,2.76738362]
[1633086199960,0.899389,3203.4,3203.1,4.80312766]
[1633086200163,0.003,3204.0,3203.2,20.6709]
[1633086200363,0.003,3204.0,3203.9,1.04705688]
[1633086200562,0.003,3204.0,3203.7,0.187]
[1633086200760,0.003,3204.0,3203.7,1.4461203]
[1633086200962,0.28650114,3204.0,3203.7,0.037]
[1633086201366,0.28650114,3204.0,3203.8,0.95276196]
[1633086201762,0.28650114,3204.0,3203.9,1.05715089]
[1633086202165,0.28650114,3204.0,3203.8,0.95276196]
[1633086202365,0.28650114,3204.0,3203.7,0.037]
[1633086202965,0.28650114,3204.0,3203.5,2.89187609]
[1633086202966,0.28650114,3204.0,3203.5,2.83253465]
[1633086203165,0.003,3204.0,3203.9,1.80854053]
[1633086203567,0.003,3204.0,3203.8,0.09496942]
[1633086203767,0.003,3204.0,3203.9,1.80851599]
[1633086203970,0.003,3204.0,3203.8,1.90350123]
[1633086204168,0.003,3204.0,3203.9,1.26595619]
[1633086204369,0.003,3204.0,3203.8,1.36098116]
[1633086204571,0.003,3204.0,3203.9,4.55]
[1633086204770,0.833734,3204.0,3203.9,1.80852169]
[1633086204970,0.833734,3204.0,3203.9,1.26598169]
[1633086205731,8.833734,3204.0,3203.8,0.09496942]
[1633086206131,0.833734,3204.0,3203.8,0.09496942]
[1633086206532,1.38135146,3203.9,3203.4,1.80885702]
[1633086206728,3.12192,3203.8,3203.4,1.80885702]
[1633086206928,3.12192,3203.8,3203.5,1.80879596]
[1633086207129,3.12192,3203.8,3203.4,2.35137156]
[1633086207329,3.12192,3203.8,3203.5,2.3513729]
[1633086207530,3.12192,3203.8,3203.7,1.80876826]
[1633086207929,3.12192,3203.8,3203.6,2.35139681]
[1633086208132,3.12192,3203.8,3203.7,1.36551067]
[1633086208329,3.12192,3203.8,3203.6,1.80879939]
[1633086208330,4.03222556,3203.8,3203.6,1.80879939]
[1633086208530,5.09939456,3203.8,3203.7,1.36562862]
[1633086208729,5.26632,3203.8,3203.7,1.46049457]
[1633086208930,4.09939456,3203.8,3203.7,1.46050655]
[1633086209133,4.03222556,3203.8,3203.7,1.46050655]
[1633086209431,11.83779026,3203.8,3203.7,1.46050655]
[1633086209632,21.54735147,3203.8,3203.1,4.70312766]
[1633086209930,9.05125147,3203.8,3203.1,4.70312766]
[1633086210330,17.0898549,3203.8,3203.1,4.70312766]
[1633086210529,17.0898549,3203.8,3203.1,6.51217089]
[1633086210530,0.8295476,3203.3,3203.1,6.51217089]
[1633086210732,0.8295476,3203.3,3203.1,4.70312766]
[1633086210930,3.9521602,3203.3,3203.1,4.70312766]
[1633086211340,3.1226126,3203.3,3203.1,6.51218744]
[1633086211532,3.1226126,3203.3,3203.1,4.70312766]
[1633086211931,0.33122981,3203.2,3203.1,4.70312766]
[1633086212131,0.33122981,3203.2,3203.1,4.65312766]
[1633086212332,8.15060901,3203.0,3202.9,5.389e-05]
[1633086212635,15.97563732,3203.0,3202.5,0.003]
[1633086212832,1.44702878,3202.7,3202.5,0.003]
[1633086213031,0.54265798,3202.9,3202.6,1.294]
[1633086213231,0.54265798,3202.9,3202.3,0.003]
[1633086213431,0.54265122,3202.8,3202.3,0.003]
[1633086213632,0.54267983,3202.6,3202.3,0.003]
[1633086213835,3.12335,3202.7,3202.3,0.003]
[1633086213836,3.66602661,3202.7,3202.3,0.003]
[1633086214031,3.12335,3202.7,3202.5,1.294]
[1633086214235,3.12335,3202.7,3202.6,0.90444788]
[1633086214432,3.12335,3202.7,3202.6,0.54264752]
[1633086215032,3.12335,3202.7,3202.5,0.54566076]
[1633086215233,7.85129732,3203.0,3202.6,2.19844461]
[1633086215435,7.85129732,3203.0,3202.8,0.5426128]
[1633086216436,7.85129732,3203.0,3202.5,0.54566459]
[1633086216437,16.31557594,3202.9,3202.5,0.54566459]
[1633086216635,0.61966147,3202.6,3202.5,0.003]
[1633086216837,0.187,3202.8,3202.5,0.003]
[1633086217033,5.93552309,3202.7,3202.4,0.58981322]
[1633086217233,0.071168,3202.6,3202.5,0.54268987]
[1633086217434,3.12397,3202.8,3202.7,8.22870021]
[1633086217637,1.7868075,3202.9,3202.7,11.49630051]
[1633086217638,0.3314179,3202.9,3202.7,11.49630051]
[1633086217832,0.3314179,3202.9,3202.7,8.6070568]
[1633086218636,0.3314179,3202.9,3202.8,1.26621823]
[1633086219033,0.3314179,3202.9,3202.7,8.6070568]
[1633086219232,0.3314179,3202.9,3202.7,9.87329625]
[1633086219436,0.3314179,3202.9,3202.8,1.26626943]
[1633086219635,7.85429732,3203.0,3202.7,9.87331948]
[1633086219834,7.85429732,3203.0,3202.9,0.90446682]
[1633086219835,10.97697732,3203.0,3202.9,0.90446682]
[1633086220034,10.97697732,3203.0,3202.9,0.90446439]
[1633086220433,10.97697732,3203.0,3202.8,0.95169939]
[1633086220632,10.97697732,3203.0,3202.8,0.95173802]
[1633086220633,11.75486863,3203.0,3202.8,0.95173802]
[1633086221034,10.97697732,3203.0,3202.8,0.58994737]
[1633086221437,10.97697732,3203.0,3202.9,10.75]
[1633086221641,10.97697732,3203.0,3202.9,1.80887162]
[1633086221836,10.97697732,3203.0,3202.8,1.85614001]
[1633086222040,10.97697732,3203.0,3202.9,1.26623172]
[1633086222438,10.97697732,3203.0,3202.9,1.294]
[1633086222639,0.003,3203.5,3203.0,13.30480354]
[1633086222838,0.003,3203.5,3203.4,1.26620482]
[1633086223039,0.003,3203.5,3203.4,1.09140721]
[1633086223238,0.003,3203.5,3203.4,2.02766206]
[1633086223440,0.003,3203.5,3203.4,0.54266555]
[1633086223441,3.12467,3203.5,3203.4,0.54266555]
[1633086223642,3.12467,3203.5,3203.2,0.54268947]
[1633086223643,3.66735947,3203.5,3203.2,0.54268947]
[1633086224441,5.42803649,3203.4,3203.2,0.54268947]
[1633086225040,5.42803649,3203.4,3203.0,10.01169749]
[1633086225041,10.8,3203.2,3203.0,10.01169749]
[1633086225245,0.10457429,3203.1,3203.0,2.85999984]
[1633086225444,5.57362807,3203.1,3203.0,2.85999984]
[1633086225643,4.68531,3203.1,3203.0,3.40280493]
[1633086225842,4.68531,3203.1,3203.0,2.85999984]
[1633086226041,4.68531,3203.1,3203.0,3.92069151]
[1633086226442,4.68531,3203.1,3203.0,2.85999984]
[1633086226643,12.68531,3203.1,3203.0,2.85999984]
[1633086226844,15.37930508,3203.1,3203.0,2.85999984]
[1633086227041,14.47459601,3203.1,3203.0,2.85999984]
[1633086227443,17.23499658,3203.1,3203.0,2.85999984]
[1633086227642,7.01743577,3203.1,3203.0,2.85999984]
[1633086227843,13.22813153,3203.1,3203.0,2.85999984]
[1633086228042,15.01739229,3203.1,3203.0,2.85999984]
[1633086228242,15.01739229,3203.1,3203.0,2.75999984]
[1633086228243,16.6448806,3203.1,3203.0,2.75999984]
[1633086228441,8.0,3203.0,3202.5,0.54285062]
[1633086228642,6.78933932,3202.8,3202.5,0.54285062]
[1633086228844,0.76959147,3202.6,3202.5,0.90776251]
[1633086229041,0.76959147,3202.6,3202.5,0.003]
[1633086229245,0.76959147,3202.6,3202.5,0.90776758]
[1633086229441,0.76959147,3202.6,3202.5,0.9077342]
[1633086229644,0.76959147,3202.6,3202.5,0.003]
[1633086230044,0.76959147,3202.6,3202.4,0.003]
[1633086230244,8.57804427,3202.6,3202.3,0.003]
[1633086230446,0.54288947,3202.5,3202.3,0.003]
[1633086230644,6.77438956,3202.6,3202.3,0.003]
[1633086230645,13.62298098,3202.6,3202.3,0.003]
[1633086230844,14.34689204,3202.6,3202.4,0.04713067]
[1633086231044,13.08005427,3202.6,3202.4,0.04713067]
[1633086231243,13.08005427,3202.6,3202.5,0.003]
[1633086231445,14.86960077,3202.6,3202.4,0.04713067]
[1633086231644,6.86960077,3202.6,3202.4,0.04713067]
[1633086231844,11.16698462,3202.5,3202.0,0.003]
[1633086232044,3.05670266,3202.5,3202.0,0.003]